fUST/lending_fUST_20250809
["ID","MTS","AMOUNT","RATE_DAILY","PERIOD"]
[378078284,1754717470921,-460.0,0.00024657,2]
[378078285,1754717470931,-460.0,0.00024657,2]
[378078286,1754717470941,-315.58,0.00024657,2]
[378078287,1754717470951,-153.08286251,0.00024657,2]
[378078288,1754717470961,-460.0,0.00024657,2]
[378078289,1754717470970,-486.51456895,0.00024657,2]
[378078290,1754717470980,-748.0,0.00024657,2]
[378078291,1754717470989,-460.0,0.00024657,2]
[378078292,1754717470998,-503.24,0.00024657,2]
[378078293,1754717471007,-460.0,0.00024657,2]
[378078294,1754717471017,-460.0,0.00024657,2]
[378078295,1754717471026,-460.0,0.00024657,2]
[378078296,1754717471035,-872.77,0.00024657,2]
[378078297,1754717471045,-460.0,0.00024657,2]
[378078298,1754717471054,-623.59,0.00024657,2]
[378078299,1754717471063,-460.0,0.00024657,2]
[378078300,1754717471074,-460.0,0.00024657,2]
[378078301,1754717471083,-460.0,0.00024657,2]
[378078302,1754717471092,-460.0,0.00024657,2]
[378078303,1754717471101,-460.0,0.00024657,2]
[378078304,1754717471111,-460.0,0.00024657,2]
[378078305,1754717471120,-592.07444814,0.00024657,2]
[378078306,1754717471130,-460.0,0.00024657,2]
[378078307,1754717471139,-460.0,0.00024657,2]
[378078308,1754717471148,-481.14,0.00024657,2]
[378078309,1754717471157,-1328.21,0.00024657,2]
[378078310,1754717471167,-460.0,0.00024657,2]
[378078311,1754717471177,-548.91,0.00024657,2]
[378078312,1754717471187,-1419.17,0.00024657,2]
[378078313,1754717471196,-460.0,0.00024657,2]
[378078314,1754717471206,-460.0,0.00024657,2]
[378078315,1754717471215,-460.0,0.00024657,2]
[378078316,1754717471225,-460.0,0.00024657,2]
[378078317,1754717471234,-460.0,0.00024657,2]
[378078318,1754717471243,-460.0,0.00024657,2]
[378078319,1754717471254,-460.0,0.00024657,2]
[378078320,1754717471263,-1181.72,0.00024657,2]
[378078321,1754717471273,-460.0,0.00024657,2]
[378078322,1754717471283,-460.0,0.00024657,2]
[378078323,1754717471292,-460.0,0.00024657,2]
[378078324,1754717471301,-813.16,0.00024657,2]
[378078325,1754717471310,-3145.56,0.00024657,4]
[378078326,1754717471320,-481.46321827,0.00024657,2]
[378078327,1754717471330,-229.41847705,0.00024657,2]
[378078328,1754717471340,-460.0,0.00024657,2]
[378078329,1754717471349,-622.45,0.00024657,2]
[378078330,1754717471358,-779.99,0.00024657,2]
[378078331,1754717471367,-1619.97,0.00024657,2]
[378078332,1754717471377,-460.0,0.00024657,2]
[378078333,1754717471386,-460.0,0.00024657,2]
[378078334,1754717471396,-1148.8,0.00024657,2]
[378078335,1754717471406,-460.0,0.00024657,2]
[378078336,1754717471415,-460.0,0.00024657,2]
[378078337,1754717471424,-401.32490209,0.00024657,2]
[378078338,1754717471434,-1244.78,0.00024657,2]
[378078339,1754717471444,-460.0,0.00024657,2]
[378078340,1754717471453,-2519.37,0.00024657,2]
[378078341,1754717471462,-503.86,0.00024657,2]
[378078342,1754717471471,-638.61,0.00024657,2]
[378078343,1754717471481,-603.35,0.00024657,2]
[378078344,1754717471490,-710.26,0.00024657,2]
[378078345,1754717471499,-460.0,0.00024657,2]
[378078346,1754717471509,-460.0,0.00024657,2]
[378078347,1754717471520,-727.66,0.00024657,2]
[378078348,1754717471530,-460.0,0.00024657,2]
[378078349,1754717471539,-460.0,0.00024657,2]
[378078350,1754717471548,-5453.14,0.00024657,2]
[378078351,1754717471558,-2213.25,0.00024657,2]
[378078352,1754717471567,-273.46392974,0.00024657,2]
[378078353,1754717471578,-2392.79,0.00024657,2]
[378078354,1754717471588,-1847.54,0.00024657,2]
[378078355,1754717471599,-786.49,0.00024657,2]
[378078356,1754717471615,-460.0,0.00024657,2]
[378078357,1754717471625,-915.76,0.00024657,2]
[378078358,1754717471634,-466.57,0.00024657,2]
[378078359,1754717471645,-460.0,0.00024657,2]
[378078360,1754717471654,-542.22,0.00024657,2]
[378078361,1754717471664,-533.05,0.00024657,2]
[378078362,1754717471674,-557.41,0.00024657,2]
[378078363,1754717471684,-460.0,0.00024657,2]
[378078364,1754717471694,-460.0,0.00024657,2]
[378078365,1754717471703,-460.0,0.00024657,2]
[378078366,1754717471712,-1807.89,0.00024657,2]
[378078367,1754717471722,-460.0,0.00024657,2]
[378078368,1754717471732,-1773.57,0.00024657,2]
[378078369,1754717471741,-460.0,0.00024657,2]
[378078370,1754717471751,-1299.54,0.00024657,2]
[378078371,1754717471760,-460.0,0.00024657,2]
[378078372,1754717471770,-370.01728332,0.00024657,2]
[378078373,1754717471779,-460.0,0.00024657,2]
[378078374,1754717471789,-726.66,0.00024657,2]
[378078375,1754717471798,-649.7,0.00024657,2]
[378078376,1754717471808,-1110.73,0.00024657,2]
[378078377,1754717471817,-971.96,0.00024657,2]
[378078378,1754717471828,-1447.77,0.00024657,2]
[378078379,1754717471838,-460.0,0.00024657,2]
[378078380,1754717471847,-500.75,0.00024657,2]
[378078381,1754717471857,-460.0,0.00024657,2]
[378078382,1754717471866,-460.0,0.00024657,2]
[378078383,1754717471875,-460.0,0.00024657,2]
[378078384,1754717471885,-460.0,0.00024657,2]
[378078385,1754717471894,-460.0,0.00024657,2]
[378078386,1754717471904,-460.0,0.00024657,2]
[378078387,1754717471913,-460.0,0.00024657,2]
[378078388,1754717471922,-672.29,0.00024657,2]
[378078389,1754717471932,-1699.23,0.00024657,2]
[378078390,1754717471941,-460.0,0.00024657,2]
[378078391,1754717471950,-520.08,0.00024657,2]
[378078392,1754717471959,-460.0,0.00024657,2]
[378078393,1754717471968,-889.0,0.00024657,2]
[378078394,1754717471978,-3585.3,0.00024657,2]
[378078395,1754717471987,-607.44,0.00024657,2]
[378078396,1754717471996,-150.0,0.00024658,2]
[378078397,1754717472006,-500.0,0.00024658,2]
[378078398,1754717472015,-380.0,0.00024658,2]
[378078399,1754717472024,-151.0,0.00024658,7]
[378078400,1754717472033,-151.0,0.00024658,7]
[378078401,1754717472043,-152.207969,0.00024658,7]
[378078402,1754717472052,-500.0,0.00024658,2]
[378078403,1754717472061,-500.0,0.00024658,2]
[378078404,1754717472071,-500.0,0.00024658,2]
[378078405,1754717472082,-500.0,0.00024658,2]
[378078406,1754717472092,-230.11415043,0.00024658,2]
[378078407,1754717472101,-500.0,0.00024658,2]
[378078408,1754717472114,-1004.26879671,0.00024664,2]
[378078409,1754717472123,-260.0,0.00024677,2]
[378078410,1754717472133,-553.86947639,0.0002469,10]
[378078411,1754717472142,-151.0,0.000247,9]
[378078412,1754717472151,-3000.0,0.00024712,2]
[378078413,1754717472161,-3000.0,0.00024712,2]
[378078414,1754717472170,-996.37037024,0.00024717,2]
[378078415,1754717472180,-500.0,0.00024764,2]
[378078416,1754717472189,-12292.12143982,0.00024774,2]
[378078417,1754717472199,-244.731309,0.000248,7]
[378078418,1754717472208,-151.0,0.000248,7]
[378078419,1754717472217,-151.0,0.000248,7]
[378078420,1754717472226,-86015.7673784,0.000248,2]
[378078421,1754717472236,-152.807478,0.000248,7]
[378078422,1754717472245,-244.731309,0.000249,7]
[378078423,1754717472255,-244.731309,0.000249,7]
[378078424,1754717472264,-151.0,0.000249,7]
[378078425,1754717472273,-154.921697,0.000249,7]
[378078426,1754717472283,-151.0,0.000249,7]
[378078427,1754717472292,-151.0,0.000249,7]
[378078428,1754717472301,-208.585868,0.000249,7]
[378078429,1754717472311,-151.0,0.000249,7]
[378078430,1754717472320,-151.0,0.000249,7]
[378078431,1754717472331,-151.0,0.000249,7]
[378078432,1754717472340,-151.0,0.000249,7]
[378078433,1754717472350,-236.49422,0.000249,7]
[378078434,1754717472359,-789.721827,0.000249,7]
[378078435,1754717472369,-789.721827,0.000249,7]
[378078436,1754717472378,-65176.50672757,0.000249,2]
[378078437,1754717472541,-568436.96332543,0.000249,2]
[378078438,1754717472551,-151.0,0.000249,7]
[378078439,1754717472562,-211.274078,0.000249,7]
[378078440,1754717472572,-211.274078,0.000249,7]
[378078441,1754717472582,-151.0,0.000249,7]
[378078442,1754717472592,-168.0,0.00024927,2]
[378078443,1754717472603,-460.0,0.00024931,2]
[378078444,1754717472612,-460.0,0.00024931,2]
[378078445,1754717472622,-460.0,0.00024931,2]
[378078446,1754717472631,-460.0,0.00024931,2]
[378078447,1754717472641,-460.0,0.00024931,2]
[378078448,1754717472650,-632.83,0.00024931,2]
[378078449,1754717472661,-460.0,0.00024931,2]
[378078450,1754717472674,-195.45813194,0.00024931,2]
[378078451,1754717472684,-748.0,0.00024931,2]
[378078452,1754717472694,-460.0,0.00024931,2]
[378078453,1754717472703,-503.24,0.00024931,2]
[378078454,1754717472712,-460.0,0.00024931,2]
[378078455,1754717472722,-460.0,0.00024931,2]
[378078456,1754717472732,-460.0,0.00024931,2]
[378078457,1754717472742,-872.77,0.00024931,2]
[378078458,1754717472751,-460.0,0.00024931,2]
[378078459,1754717472865,-623.59,0.00024931,2]
[378078460,1754717472875,-460.0,0.00024931,2]
[378078461,1754717472888,-460.0,0.00024931,2]
[378078462,1754717472900,-460.0,0.00024931,2]
[378078463,1754717472910,-460.0,0.00024931,2]
[378078464,1754717472920,-460.0,0.00024931,2]
[378078465,1754717472929,-460.0,0.00024931,2]
[378078466,1754717472940,-460.0,0.00024931,2]
[378078467,1754717472951,-481.14,0.00024931,2]
[378078468,1754717472961,-1328.21,0.00024931,2]
[378078469,1754717472970,-460.0,0.00024931,2]
[378078470,1754717472980,-548.91,0.00024931,2]
[378078471,1754717472990,-1419.17,0.00024931,2]
[378078472,1754717473000,-460.0,0.00024931,2]
[378078473,1754717473010,-460.0,0.00024931,2]
[378078474,1754717473020,-156.79931915,0.00024931,2]
[378078475,1754717473030,-460.0,0.00024931,2]
[378078476,1754717473039,-460.0,0.00024931,2]
[378078477,1754717473049,-460.0,0.00024931,2]
[378078478,1754717473059,-460.0,0.00024931,2]
[378078479,1754717473069,-1181.72,0.00024931,2]
[378078480,1754717473079,-460.0,0.00024931,2]
[378078481,1754717473089,-460.0,0.00024931,2]
[378078482,1754717473099,-460.0,0.00024931,2]
[378078483,1754717473108,-813.16,0.00024931,2]
[378078484,1754717473118,-622.45,0.00024931,2]
[378078485,1754717473128,-460.0,0.00024931,2]
[378078486,1754717473137,-779.99,0.00024931,2]
[378078487,1754717473147,-1619.97,0.00024931,2]
[378078488,1754717473157,-460.0,0.00024931,2]
[378078489,1754717473166,-460.0,0.00024931,2]
[378078490,1754717473177,-1148.8,0.00024931,2]
[378078491,1754717473187,-460.0,0.00024931,2]
[378078492,1754717473196,-460.0,0.00024931,2]
[378078493,1754717473205,-1244.78,0.00024931,2]
[378078494,1754717473215,-460.0,0.00024931,2]
[378078495,1754717473224,-2519.37,0.00024931,2]
[378078496,1754717473233,-503.86,0.00024931,2]
[378078497,1754717473243,-638.61,0.00024931,2]
[378078498,1754717473252,-603.35,0.00024931,2]
[378078499,1754717473261,-710.26,0.00024931,2]
[378078500,1754717473271,-460.0,0.00024931,2]
[378078501,1754717473280,-460.0,0.00024931,2]
[378078502,1754717473289,-727.66,0.00024931,2]
[378078503,1754717473299,-460.0,0.00024931,2]
[378078504,1754717473308,-460.0,0.00024931,2]
[378078505,1754717473318,-5453.14,0.00024931,2]
[378078506,1754717473330,-2213.25,0.00024931,2]
[378078507,1754717473341,-2392.79,0.00024931,2]
[378078508,1754717473350,-1847.54,0.00024931,2]
[378078509,1754717473360,-786.49,0.00024931,2]
[378078510,1754717473371,-460.0,0.00024931,2]
[378078511,1754717473380,-915.76,0.00024931,2]
[378078512,1754717473390,-466.57,0.00024931,2]
[378078513,1754717473400,-460.0,0.00024931,2]
[378078514,1754717473409,-542.22,0.00024931,2]
[378078515,1754717473419,-533.05,0.00024931,2]
[378078516,1754717473429,-557.41,0.00024931,2]
[378078517,1754717473439,-460.0,0.00024931,2]
[378078518,1754717473448,-460.0,0.00024931,2]
[378078519,1754717473458,-460.0,0.00024931,2]
[378078520,1754717473467,-1807.89,0.00024931,2]
[378078521,1754717473477,-460.0,0.00024931,2]
[378078522,1754717473489,-1773.57,0.00024931,2]
[378078523,1754717473499,-460.0,0.00024931,2]
[378078524,1754717473509,-1299.54,0.00024931,2]
[378078525,1754717473520,-460.0,0.00024931,2]
[378078526,1754717473532,-460.0,0.00024931,2]
[378078527,1754717473541,-726.66,0.00024931,2]
[378078528,1754717473551,-649.7,0.00024931,2]
[378078529,1754717473561,-1110.73,0.00024931,2]
[378078530,1754717473570,-971.96,0.00024931,2]
[378078531,1754717473581,-1447.77,0.00024931,2]
[378078532,1754717473590,-460.0,0.00024931,2]
[378078533,1754717473600,-500.75,0.00024931,2]
[378078534,1754717473609,-400.0,0.00024931,2]
[378078535,1754717473619,-460.0,0.00024931,2]
[378078536,1754717473629,-460.0,0.00024931,2]
[378078537,1754717473638,-460.0,0.00024931,2]
[378078538,1754717473648,-460.0,0.00024931,2]
[378078539,1754717473658,-460.0,0.00024931,2]
[378078540,1754717473667,-487.10669741,0.00024931,2]
[378078541,1754717473676,-672.29,0.00024931,2]
[378078542,1754717473686,-1699.23,0.00024931,2]
[378078543,1754717473695,-460.0,0.00024931,2]
[378078544,1754717473704,-520.08,0.00024931,2]
[378078545,1754717473713,-460.0,0.00024931,2]
[378078546,1754717473723,-889.0,0.00024931,2]
[378078547,1754717473732,-3585.3,0.00024931,2]
[378078548,1754717473742,-607.44,0.00024931,2]
[378078549,1754717473751,-156.0,0.00024932,7]
[378078550,1754717473761,-550.0,0.00024964,2]
[378078551,1754717473770,-2500.0,0.00024964,2]
[378078552,1754717473779,-301.99999974,0.00025,5]
[378078553,1754717473792,-156.0,0.00025,7]
[378078554,1754717473802,-160.12247853,0.00025041,15]
[378078555,1754717473811,-500.0,0.00025084,2]
[378078556,1754717473821,-900.0,0.000251,2]
[378078557,1754717473835,-168.0,0.0002513,2]
[378078558,1754717473844,-2044.22035058,0.0002516,2]
[378078559,1754717473854,-1010.91483232,0.0002516,2]
[378078560,1754717473863,-8230.62948225,0.00025164,2]
[378078561,1754717473872,-151.0,0.000252,20]
[378078562,1754717473882,-244.731309,0.00025205,7]
[378078563,1754717473892,-244.731309,0.00025205,7]
[378078564,1754717473901,-460.0,0.00025205,2]
[378078565,1754717473911,-460.0,0.00025205,2]
[378078566,1754717473920,-460.0,0.00025205,2]
[378078567,1754717473930,-460.0,0.00025205,2]
[378078568,1754717473940,-460.0,0.00025205,2]
[378078569,1754717473949,-632.83,0.00025205,2]
[378078570,1754717473962,-460.0,0.00025205,2]
[378078571,1754717473972,-748.0,0.00025205,2]
[378078572,1754717473984,-592.60485104,0.00025205,2]
[378078573,1754717473996,-503.24,0.00025205,2]
[378078574,1754717474006,-460.0,0.00025205,2]
[378078575,1754717474016,-460.0,0.00025205,2]
[378078576,1754717474025,-460.0,0.00025205,2]
[378078577,1754717474035,-872.77,0.00025205,2]
[378078578,1754717474045,-460.0,0.00025205,2]
[378078579,1754717474055,-623.59,0.00025205,2]
[378078580,1754717474071,-460.0,0.00025205,2]
[378078581,1754717474083,-460.0,0.00025205,2]
[378078582,1754717474093,-460.0,0.00025205,2]
[378078583,1754717474102,-460.0,0.00025205,2]
[378078584,1754717474111,-460.0,0.00025205,2]
[378078585,1754717474121,-460.0,0.00025205,2]
[378078586,1754717474131,-481.14,0.00025205,2]
[378078587,1754717474140,-1328.21,0.00025205,2]
[378078588,1754717474150,-460.0,0.00025205,2]
[378078589,1754717474160,-548.91,0.00025205,2]
[378078590,1754717474173,-1419.17,0.00025205,2]
[378078591,1754717474183,-460.0,0.00025205,2]
[378078592,1754717474192,-460.0,0.00025205,2]
[378078593,1754717474201,-460.0,0.00025205,2]
[378078594,1754717474211,-460.0,0.00025205,2]
[378078595,1754717474220,-401.80871424,0.00025205,2]
[378078596,1754717474229,-460.0,0.00025205,2]
[378078597,1754717474239,-1181.72,0.00025205,2]
[378078598,1754717474248,-460.0,0.00025205,2]
[378078599,1754717474257,-460.0,0.00025205,2]
[378078600,1754717474267,-460.0,0.00025205,2]
[378078601,1754717474276,-813.16,0.00025205,2]
[378078602,1754717474286,-622.45,0.00025205,2]
[378078603,1754717474300,-460.0,0.00025205,2]
[378078604,1754717474309,-779.99,0.00025205,2]
[378078605,1754717474319,-460.0,0.00025205,2]
[378078606,1754717474332,-1619.97,0.00025205,2]
[378078607,1754717474348,-460.0,0.00025205,2]
[378078608,1754717474358,-460.0,0.00025205,2]
[378078609,1754717474368,-1148.8,0.00025205,2]
[378078610,1754717474377,-460.0,0.00025205,2]
[378078611,1754717474387,-1244.78,0.00025205,2]
[378078612,1754717474396,-460.0,0.00025205,2]
[378078613,1754717474407,-2519.37,0.00025205,2]
[378078614,1754717474416,-503.86,0.00025205,2]
[378078615,1754717474425,-603.35,0.00025205,2]
[378078616,1754717474435,-638.61,0.00025205,2]
[378078617,1754717474444,-710.26,0.00025205,2]
[378078618,1754717474453,-460.0,0.00025205,2]
[378078619,1754717474463,-460.0,0.00025205,2]
[378078620,1754717474472,-727.66,0.00025205,2]
[378078621,1754717474481,-460.0,0.00025205,2]
[378078622,1754717474492,-460.0,0.00025205,2]
[378078623,1754717474501,-5453.14,0.00025205,2]
[378078624,1754717474510,-2213.25,0.00025205,2]
[378078625,1754717474520,-2392.79,0.00025205,2]
[378078626,1754717474533,-1847.54,0.00025205,2]
[378078627,1754717474542,-786.49,0.00025205,2]
[378078628,1754717474551,-460.0,0.00025205,2]
[378078629,1754717474561,-915.76,0.00025205,2]
[378078630,1754717474574,-466.57,0.00025205,2]
[378078631,1754717474585,-460.0,0.00025205,2]
[378078632,1754717474595,-542.22,0.00025205,2]
[378078633,1754717474605,-533.05,0.00025205,2]
[378078634,1754717474615,-557.41,0.00025205,2]
[378078635,1754717474624,-460.0,0.00025205,2]
[378078636,1754717474633,-460.0,0.00025205,2]
[378078637,1754717474642,-460.0,0.00025205,2]
[378078638,1754717474652,-1807.89,0.00025205,2]
[378078639,1754717474661,-460.0,0.00025205,2]
[378078640,1754717474671,-205.267949,0.00025205,7]
[378078641,1754717474680,-1773.57,0.00025205,2]
[378078642,1754717474690,-460.0,0.00025205,2]
[378078643,1754717474699,-1299.54,0.00025205,2]
[378078644,1754717474709,-460.0,0.00025205,2]
[378078645,1754717474719,-205.267949,0.00025205,7]
[378078646,1754717474728,-460.0,0.00025205,2]
[378078647,1754717474737,-726.66,0.00025205,2]
[378078648,1754717474750,-649.7,0.00025205,2]
[378078649,1754717474759,-1110.73,0.00025205,2]
[378078650,1754717474769,-971.96,0.00025205,2]
[378078651,1754717474779,-1447.77,0.00025205,2]
[378078652,1754717474789,-460.0,0.00025205,2]
[378078653,1754717474894,-500.75,0.00025205,2]
[378078654,1754717474904,-460.0,0.00025205,2]
[378078655,1754717474913,-460.0,0.00025205,2]
[378078656,1754717474923,-460.0,0.00025205,2]
[378078657,1754717474933,-460.0,0.00025205,2]
[378078658,1754717474944,-238.25475169,0.00025205,2]
[378078659,1754717474955,-672.29,0.00025205,2]
[378078660,1754717474965,-1699.23,0.00025205,2]
[378078661,1754717474974,-460.0,0.00025205,2]
[378078662,1754717474984,-520.08,0.00025205,2]
[378078663,1754717474993,-460.0,0.00025205,2]
[378078664,1754717475003,-889.0,0.00025205,2]
[378078665,1754717475014,-3585.3,0.00025205,2]
[378078666,1754717475024,-607.44,0.00025205,2]
[378078667,1754717475034,-360.0,0.00025224,2]
[378078668,1754717475043,-3500.0,0.0002526,2]
[378078669,1754717475053,-3500.0,0.0002526,2]
[378078670,1754717475062,-26000.0,0.000253,7]
[378078671,1754717475071,-154.000433,0.000253,7]
[378078672,1754717475086,-194.391332,0.000253,7]
[378078673,1754717475097,-194.391332,0.000253,7]
[378078674,1754717475107,-151.0,0.000253,7]
[378078675,1754717475117,-151.0,0.000253,7]
[378078676,1754717475126,-313.966754,0.000253,7]
[378078677,1754717475136,-313.966754,0.000253,7]
[378078678,1754717475146,-319.152472,0.000253,7]
[378078679,1754717475155,-319.152472,0.000253,7]
[378078680,1754717475164,-151.0,0.000253,7]
[378078681,1754717475173,-842.95011917,0.000253,7]
[378078682,1754717475183,-160.0,0.000253,7]
[378078683,1754717475192,-216.61183532,0.000253,7]
[378078684,1754717475202,-312.16666667,0.000253,7]
[378078685,1754717475211,-168.0,0.00025307,2]
[378078686,1754717475221,-180.29597835,0.00025342,2]
[378078687,1754717475231,-168.0,0.00025384,2]
[378078688,1754717475240,-244.731309,0.00025479,7]
[378078689,1754717475250,-244.731309,0.00025479,7]
[378078690,1754717475259,-460.0,0.00025479,2]
[378078691,1754717475270,-460.0,0.00025479,2]
[378078692,1754717475279,-460.0,0.00025479,2]
[378078693,1754717475289,-460.0,0.00025479,2]
[378078694,1754717475298,-179.26,0.00025479,2]
[378078695,1754717475307,-632.83,0.00025479,2]
[378078696,1754717475316,-460.0,0.00025479,2]
[378078697,1754717475325,-748.0,0.00025479,2]
[378078698,1754717475335,-503.24,0.00025479,2]
[378078699,1754717475344,-460.0,0.00025479,2]
[378078700,1754717475353,-460.0,0.00025479,2]
[378078701,1754717475363,-460.0,0.00025479,2]
[378078702,1754717475372,-872.77,0.00025479,2]
[378078703,1754717475381,-460.0,0.00025479,2]
[378078704,1754717475391,-623.59,0.00025479,2]
[378078705,1754717475400,-460.0,0.00025479,2]
[378078706,1754717475409,-348.19280875,0.00025479,2]
[378078707,1754717475418,-460.0,0.00025479,2]
[378078708,1754717475427,-460.0,0.00025479,2]
[378078709,1754717475437,-460.0,0.00025479,2]
[378078710,1754717475446,-460.0,0.00025479,2]
[378078711,1754717475455,-481.14,0.00025479,2]
[378078712,1754717475464,-1328.21,0.00025479,2]
[378078713,1754717475474,-556.25093737,0.00025479,2]
[378078714,1754717475483,-548.91,0.00025479,2]
[378078715,1754717475493,-1419.17,0.00025479,2]
[378078716,1754717475503,-460.0,0.00025479,2]
[378078717,1754717475513,-460.0,0.00025479,2]
[378078718,1754717475527,-460.0,0.00025479,2]
[378078719,1754717475536,-460.0,0.00025479,2]
[378078720,1754717475546,-460.0,0.00025479,2]
[378078721,1754717475555,-1181.72,0.00025479,2]
[378078722,1754717475565,-259.21,0.00025479,2]
[378078723,1754717475574,-460.0,0.00025479,2]
[378078724,1754717475584,-460.0,0.00025479,2]
[378078725,1754717475593,-813.16,0.00025479,2]
[378078726,1754717475606,-622.45,0.00025479,2]
[378078727,1754717475615,-460.0,0.00025479,2]
[378078728,1754717475625,-779.99,0.00025479,2]
[378078729,1754717475638,-1619.97,0.00025479,2]
[378078730,1754717475652,-460.0,0.00025479,2]
[378078731,1754717475662,-460.0,0.00025479,2]
[378078732,1754717475672,-460.0,0.00025479,2]
[378078733,1754717475682,-1148.8,0.00025479,2]
[378078734,1754717475692,-1244.78,0.00025479,2]
[378078735,1754717475701,-460.0,0.00025479,2]
[378078736,1754717475711,-2519.37,0.00025479,2]
[378078737,1754717475720,-503.86,0.00025479,2]
[378078738,1754717475730,-603.35,0.00025479,2]
[378078739,1754717475739,-638.61,0.00025479,2]
[378078740,1754717475749,-710.26,0.00025479,2]
[378078741,1754717475758,-460.0,0.00025479,2]
[378078742,1754717475772,-460.0,0.00025479,2]
[378078743,1754717475789,-727.66,0.00025479,2]
[378078744,1754717475802,-460.0,0.00025479,2]
[378078745,1754717475818,-170.81714969,0.00025479,2]
[378078746,1754717475834,-5453.14,0.00025479,2]
[378078747,1754717475850,-2213.25,0.00025479,2]
[378078748,1754717475866,-2392.79,0.00025479,2]
[378078749,1754717475883,-1847.54,0.00025479,2]
[378078750,1754717475899,-786.49,0.00025479,2]
[378078751,1754717475921,-460.0,0.00025479,2]
[378078752,1754717475936,-915.76,0.00025479,2]
[378078753,1754717475950,-466.57,0.00025479,2]
[378078754,1754717475966,-460.0,0.00025479,2]
[378078755,1754717475982,-542.22,0.00025479,2]
[378078756,1754717476000,-533.05,0.00025479,2]
[378078757,1754717476013,-557.41,0.00025479,2]
[378078758,1754717476025,-460.0,0.00025479,2]
[378078759,1754717476042,-460.0,0.00025479,2]
[378078760,1754717476059,-460.0,0.00025479,2]
[378078761,1754717476074,-1807.89,0.00025479,2]
[378078762,1754717476091,-460.0,0.00025479,2]
[378078763,1754717476103,-1773.57,0.00025479,2]
[378078764,1754717476117,-460.0,0.00025479,2]
[378078765,1754717476132,-1299.54,0.00025479,2]
[378078766,1754717476146,-460.0,0.00025479,2]
[378078767,1754717476160,-460.0,0.00025479,2]
[378078768,1754717476174,-726.66,0.00025479,2]
[378078769,1754717476189,-649.7,0.00025479,2]
[378078770,1754717476203,-1110.73,0.00025479,2]
[378078771,1754717476218,-971.96,0.00025479,2]
[378078772,1754717476232,-1447.77,0.00025479,2]
[378078773,1754717476247,-485.50622539,0.00025479,2]
[378078774,1754717476260,-500.75,0.00025479,2]
[378078775,1754717476274,-460.0,0.00025479,2]
[378078776,1754717476286,-460.0,0.00025479,2]
[378078777,1754717476299,-460.0,0.00025479,2]
[378078778,1754717476311,-152.191153,0.00025479,7]
[378078779,1754717476325,-672.29,0.00025479,2]
[378078780,1754717476340,-1699.23,0.00025479,2]
[378078781,1754717476353,-460.0,0.00025479,2]
[378078782,1754717476366,-520.08,0.00025479,2]
[378078783,1754717476378,-460.0,0.00025479,2]